Cogmind - Beta 15 @@@ ROGUE MODE // 2025.08.30 @ 14:50:49 Player: shapeshifter Result: Destroyed by X-67 Chaingunner with Heavy Machine Gun Performance ------------- Evolutions (4) 2000 Regions Visited (8) 1600 Robots Destroyed (160) 800 Value Destroyed (7684) 7684 Prototype IDs (3) 60 Alien Tech Used (0) 0 Bonus (4278) 4278 TOTAL SCORE: 16422 Bonus ------- High Alert Combat Kills 1840 Follower Combat Kills 538 Entered Garrisons 400 Used RIF Installer 1500 Cogmind --------- Core Integrity 0/850 Matter 291/300 Energy 100/100 System Corruption 1% Temperature Cool (0) Movement Core (1350) Ox26 Location -6/Garrison Parts ------- > --- POWER (1) -------- (None) > --- PROPULSION (4) --- (None) > --- UTILITY (6) ------ Huge Storage Unit Relay Coupler [Swarmer] (34) Relay Coupler [Sentry] (26) Relay Coupler [Hunter] (6) > --- WEAPON (4) ------- (None) > --- INVENTORY (25) --- Advanced Heat Sink High-capacity Matter Pod (162) Seismic Detector Kinecellerator Weapon Cycler Cloaking Device Propulsion Shielding Improved Light Armor Plating Thermal Shield Relay Coupler [NC] (47) Relay Coupler [NC] (28) Relay Coupler [Grunt] (35) Relay Coupler [Grunt] (37) Relay Coupler [Duelist] (28) Relay Coupler [Demolisher] (37) Relay Coupler [Heavy] (24) Relay Coupler [Behemoth] (22) Relay Coupler [Behemoth] (15) Remote Datajack Improved Remote Datajack Plasma Cutter Peak State ------------ > --- POWER ------------ Improved Deuterium Engine > --- PROPULSION ------- Armored Huge Wheel Armored Huge Wheel > --- UTILITY ---------- Cargo Storage Unit Hardened Heavy Armor Plating Hacking Suite > --- WEAPON ----------- Gauss Rifle Gauss Rifle Gauss Rifle > --- INVENTORY -------- Light Fission Core Armored Huge Wheel Huge Storage Unit High-capacity Matter Pod Seismic Detector Kinecellerator Cloaking Device Improved Core Shielding Hardened Heavy Armor Plating Hardened Heavy Armor Plating Hardened Heavy Armor Plating Hardened Heavy Armor Plating Improved Medium Armor Plating Relay Coupler [NC] Relay Coupler [Swarmer] Relay Coupler [Grunt] Relay Coupler [Duelist] Relay Coupler [Sentry] Relay Coupler [Demolisher] Relay Coupler [Heavy] Relay Coupler [Behemoth] High-powered Shock Rifle Shock Bomb Launcher Remote Datajack Plasma Cutter [Rating: 56] Favorites ----------- Power Light Nuclear Core Engine Light Deuterium Engine Power Core Light Nuclear Core Propulsion Armored Huge Wheel Treads Light Treads Leg Flexi-carbon Leg Wheel Armored Huge Wheel Utility Cargo Storage Unit Device Seismic Detector Storage Cargo Storage Unit Processor Advanced Targeting Computer Hackware Hacking Suite Protection Hardened Heavy Armor Plating Weapon Gauss Rifle Energy Gun Shock Rifle Ballistic Gun Gauss Rifle Ballistic Cannon Flak Cannon Launcher Shock Bomb Launcher Special Weapon Remote Datajack Impact Weapon Power Maul Slashing Weapon Segregator Build | -11 -10 -10 -8 -8 -8 -7 -6 -6 ------- Run | Yrd Mat Sub Mat Gar Mat Fac Fac Gar Slots Evolved 8 | . . . 4 . . 2 2 . Power . | . . . . . . . . . Propulsion 2 | . . . 1 . . 1 . . Utility 4 | . . . 2 . . 1 1 . Weapon 2 | . . . 1 . . . 1 . Parts Attached 140 | 7 . . 40 19 11 28 12 23 Power 18 | 1 . . 5 3 2 5 . 2 Engine 6 | 1 . . 2 1 . 2 . . Core 12 | . . . 3 2 2 3 . 2 Reactor . | . . . . . . . . . Propulsion 36 | 2 . . 11 4 2 6 5 6 Treads 14 | 2 . . 7 . . . 1 4 Leg 5 | . . . . . . . 3 2 Wheel 17 | . . . 4 4 2 6 1 . Hover . | . . . . . . . . . Flight . | . . . . . . . . . Utility 39 | 2 . . 13 3 2 11 2 6 Device 3 | 1 . . 1 . . 1 . . Storage 6 | 1 . . 2 . . 1 1 1 Processor 1 | . . . 1 . . . . . Hackware 9 | . . . 2 . . 4 . 3 Protection 20 | . . . 7 3 2 5 1 2 Artifact . | . . . . . . . . . Weapon 47 | 2 . . 11 9 5 6 5 9 Energy Gun 13 | . . . 3 2 . 1 2 5 Energy Cannon . | . . . . . . . . . Ballistic Gun 22 | 2 . . 4 6 5 1 3 1 Ballistic Cannon 5 | . . . 4 . . 1 . . Launcher 2 | . . . . 1 . 1 . . Special Weapon 2 | . . . . . . 2 . . Impact Weapon 1 | . . . . . . . . 1 Slashing Weapon 2 | . . . . . . . . 2 Piercing Weapon . | . . . . . . . . . Special Melee Weapon . | . . . . . . . . . Unidentified Prototypes 3 | . . . 1 1 1 . . . Corrupted Parts 2 | . . . . . . 2 . . System Corruption 13 | . . . . . . 13 . . Parts Lost 71 | . . . 10 1 8 18 6 28 Power 8 | . . . 1 1 1 3 . 2 Propulsion 20 | . . . 1 . 2 5 2 10 Utility 12 | . . . 1 . 2 3 1 5 Weapon 31 | . . . 7 . 3 7 3 11 Highest Loss Streak 9 | . . . 4 1 4 9 6 9 To Critical Strikes 3 | . . . . . . 1 2 . Average Backups 21 | 3 5 8 16 24 27 24 20 19 Power . | . 1 1 . . 1 . . . Propulsion 2 | 1 4 6 5 2 1 . . . Utility 14 | . . . 8 15 18 20 16 14 Weapon 3 | . . 1 1 6 5 1 1 . Tool/Special . | . . . . . . . . . Unused Backups 57 | . . . 15 17 2 6 . 17 Power 2 | . . . 1 1 . . . . Propulsion 8 | . . . 7 1 . . . . Utility 42 | . . . 5 13 2 6 . 16 Weapon 4 | . . . 2 2 . . . . Tool/Special 1 | . . . . . . . . 1 Average Slot Usage (%) 70 | . 100 100 80 71 68 58 47 67 Engine 1 | . 14 14 3 . . 1 . . Core 5 | . . . 5 8 8 4 . 3 Treads 4 | . 28 28 10 . . . 2 8 Wheel 11 | . . . 8 18 16 11 13 3 Device 1 | . 14 14 2 . . 1 . . Storage 8 | . 14 14 9 9 9 7 6 6 Hackware 5 | . . . 6 . . 4 6 14 Protection 7 | . . . 8 8 8 7 6 8 Energy Gun 2 | . . . 5 2 . . 3 3 Ballistic Gun 14 | . 28 28 10 22 25 16 5 2 Ballistic Cannon 2 | . . . 7 . . . . . Peak Build Rating 56 | 7 7 7 42 46 47 56 46 56 Average Rating 38 | 4 7 7 31 42 45 44 32 42 On Entrance 24 | . 7 7 7 38 46 42 24 46 Naked Turns . | . . . . . . . . . Heaviest Build 192 | 14 14 14 169 178 180 192 113 117 Greatest Support 65 | 40 40 40 65 40 40 56 60 60 Greatest Overweight (x) 39 | . . . 6 6 6 39 6 28 Average Overweight (x) 3 | . . . 3 3 4 4 3 4 Largest Inventory Capacity 30 | 8 8 8 30 30 30 30 25 25 Average Capacity 26 | 7 8 8 23 30 30 29 25 25 Most Carried 30 | 6 8 8 30 30 30 30 25 25 Average Carried 24 | 2 5 8 20 28 29 27 22 19 Final Capacity 30 | 8 8 8 30 30 30 25 25 25 Final Carried 30 | 3 8 8 30 30 30 21 22 21 Class Distribution -------------------- 53% | Hauler-Tank 21% | Bothacker-Mutant 7% | Hauler-Mutant 5% | Bothacker-Tank 3% | Scavenger-Gunner 3% | Mutant Dominant Class ---------------- Mutant | -10/Materials Mutant | -10/Subcaves Hauler-Tank | -8/Materials Hauler-Tank | -8/Garrison Hauler-Tank | -8/Materials Hauler-Tank | -7/Factory Bothacker-Mutant | -6/Factory Bothacker-Mutant | -6/Garrison Resources | -11 -10 -10 -8 -8 -8 -7 -6 -6 ----------- Run | Yrd Mat Sub Mat Gar Mat Fac Fac Gar Matter Collected 6058 | 252 30 . 1768 1754 336 1032 134 752 Remotely . | . . . . . . . . . Salvage Created 6123 | 40 . . 2154 1562 601 1163 134 469 Parts 324 | 6 . . 116 99 19 60 8 16 Haulers Intercepted 5 | . . . 5 . . . . . Recyclers Shooed 2 | . . . 1 . . 1 . . Parts Field Recycled . | . . . . . . . . . Retrieved Matter . | . . . . . . . . . Parts Self-Destructed . | . . . . . . . . . Prevented . | . . . . . . . . . Kills | -11 -10 -10 -8 -8 -8 -7 -6 -6 ------- Run | Yrd Mat Sub Mat Gar Mat Fac Fac Gar Combat Hostiles Destroyed 134 | . . . 45 35 16 21 3 14 Melee 2 | . . . . . . . . 2 Guns 87 | . . . 25 29 7 15 3 8 Cannons 27 | . . . 18 6 . 3 . . AOE 15 | . . . 2 . 9 3 . 1 Classes Destroyed 20 | 1 . . 14 1 2 . . 2 Worker 6 | . . . 4 . . 2 . . Builder 3 | . . . 1 . . 2 . . Tunneler 2 | 2 . . . . . . . . Hauler 5 | . . . 5 . . . . . Recycler 3 | . . . 2 . . 1 . . Carrier 1 | . . . 1 . . . . . Operator 1 | . . . 1 . . . . . Watcher 5 | . . . 3 . 2 . . . Swarmer 16 | . . . 6 3 . 4 . 3 Cutter 2 | . . . . . . . . 2 Saboteur 1 | . . . . . . . . 1 Grunt 58 | . . . 23 15 8 8 . 4 Brawler 5 | . . . 2 . 1 2 . . Duelist 4 | . . . 1 1 1 1 . . Protector 1 | . . . . . 1 . . . Sentry 24 | . . . 9 8 3 2 1 1 Demolisher 2 | . . . . . 2 . . . Specialist 7 | . . . 2 3 . . . 2 Hunter 7 | . . . 2 2 . 1 2 . Programmer 7 | . . . . 3 . 3 . 1 Best Kill Streak 11 | 2 . . 5 8 11 5 1 2 Combat Bots Only 10 | . . . 3 8 10 3 1 2 Max Kills in Single Turn 4 | 1 . . 2 1 4 2 1 1 Gunslinging 1 | . . . 1 . . 1 . . Exploded 4 | . . . 2 . 4 2 . 1 Melee 1 | . . . . . . . . 1 Uniques/NPCs Destroyed . | . . . . . . . . . Combat | -11 -10 -10 -8 -8 -8 -7 -6 -6 -------- Run | Yrd Mat Sub Mat Gar Mat Fac Fac Gar Hostile Shots Fired 1614 | . . . 249 216 182 336 112 519 Missed 443 | . . . 65 64 45 94 28 147 Hits 1171 | . . . 184 152 137 242 84 372 Melee 28 | . . . . . . 23 . 5 Projectile 1143 | . . . 184 152 137 219 84 367 AOE 8 | . . . . . 4 . 1 3 Critical Strikes 48 | . . . 6 5 7 19 2 9 Actively Blocked 4 | . . . . . . 1 . 3 Damage Taken 16961 | . . . 2663 1969 2380 4259 1267 4423 Core 1803 | . . . 207 154 127 460 97 758 Absorbed by Shields 114 | . . . . 114 . . . . Redirected to Shielding 148 | . . . . . . 10 . 138 Core Remaining (%) 61 | 100 . 100 . . 11 34 . . Volleys Fired 502 | 5 . . 180 125 31 95 25 41 Largest 3 | 2 . . 3 3 3 3 3 2 Hottest 140 | 40 . . 124 135 92 88 140 110 Shots Fired 1059 | 10 . . 425 290 80 168 40 46 Gun 841 | 10 . . 284 259 74 138 40 36 Cannon 191 | . . . 141 30 . 20 . . Launcher 12 | . . . . 1 6 5 . . Special 15 | . . . . . . 5 . 10 Kinetic 898 | 10 . . 374 242 74 152 34 12 Thermal 57 | . . . 22 13 . . . 22 Explosive 7 | . . . . 1 6 . . . Electromagnetic 82 | . . . 29 34 . 11 6 2 Robot Hit Streak 17 | 5 . . 13 17 5 8 4 10 Robot Miss Streak 23 | 1 . . 10 23 5 5 3 5 Penetration Max 1 | . . . 1 . 1 1 . . Secondary Targets 19 | . . . 7 4 2 5 1 . Max Gunslinging Chain 1 | . . . 1 1 1 1 1 . Shots Hit Robots 688 | 7 . . 293 165 40 93 34 56 Core Hits 406 | 3 . . 187 82 36 48 25 25 Critical Kills 3 | . . . 2 . . 1 . . Critical Parts Destroyed 9 | . . . 1 1 . 1 1 5 Critical Strikes 16 | . . . 5 1 . 3 1 6 Burn 2 | . . . 1 . . . . 1 Destroy 7 | . . . 3 1 . 2 1 . Blast 1 | . . . . . . 1 . . Corrupt 1 | . . . 1 . . . . . Smash 5 | . . . . . . . . 5 Melee Attacks 41 | . . . . . . . . 41 Thermal 4 | . . . . . . . . 4 Impact 37 | . . . . . . . . 37 Slashing . | . . . . . . . . . Piercing . | . . . . . . . . . Sneak Attacks . | . . . . . . . . . Combat Hostiles . | . . . . . . . . . Follow-up Attacks 1 | . . . . . . . . 1 Damage Inflicted 14598 | 69 . . 4736 3094 2198 2484 586 1431 Guns 8706 | 69 . . 2264 2486 988 1799 586 514 Cannons 2908 | . . . 2217 440 . 251 . . Explosions 2030 | . . . 255 168 1210 397 . . Melee 908 | . . . . . . . . 908 Ramming 46 | . . . . . . 37 . 9 Kinetic 10497 | 69 . . 4078 2601 988 2006 537 218 Thermal 870 | . . . 188 339 . 66 . 277 Explosive 1428 | . . . 218 . 1210 . . . Electromagnetic 849 | . . . 252 154 . 375 49 19 Impact 908 | . . . . . . . . 908 Slashing . | . . . . . . . . . Piercing . | . . . . . . . . . Highest Corruption 33 | . . . . 4 4 33 . 1 Average Corruption 5 | . . . . 3 4 27 . 1 Corruption Purged . | . . . . . . . . . Corruption Blocked . | . . . . . . . . . Effects 98 | . . . . 49 16 22 . 11 Message Errors 25 | . . . . 10 7 7 . 1 Matter Fused 19 | . . . . 9 2 5 . 3 Heat Flow Errors 14 | . . . . 10 1 2 . 1 Energy Discharges 7 | . . . . 5 1 1 . . Data Loss (minor) 16 | . . . . 9 1 3 . 3 Data Loss (major) 7 | . . . . 3 3 1 . . Misfires 5 | . . . . 3 . . . 2 Alerts 2 | . . . . . . 2 . . Weapon Failures 3 | . . . . . 1 1 . 1 Overload Shots . | . . . . . . . . . Overflow Damage 367 | . . . 43 . 31 1 . 292 Projectiles . | . . . . . . . . . Explosions 74 | . . . 43 . 31 . . . Melee 293 | . . . . . . 1 . 292 Knockbacks 89 | . . . 72 11 . 4 . 2 Impact 2 | . . . . . . . . 2 Kinetic 84 | . . . 69 11 . 4 . . Secondary 3 | . . . 3 . . . . . Self-Inflicted Damage 340 | . . . 154 . 11 175 . . Shots 9 | . . . 2 . 1 6 . . Rammed 6 | . . . . . . 3 . 3 Targets Rammed 7 | . . . . . . 3 . 4 Kicked 1 | . . . . . . . . 1 Crushed . | . . . . . . . . . Highest Temperature 425 | . . . 384 425 317 411 90 203 Average Temperature 110 | . . . 64 139 134 133 25 53 Received Heat Transfer 4979 | . . . 1170 563 1188 999 54 1005 Effects 31 | . . . 2 18 3 8 . . Shutdowns 5 | . . . 1 2 . 2 . . Energy Bleed 9 | . . . 1 6 . 2 . . Interference 11 | . . . . 6 3 2 . . Matter Decay 3 | . . . . 2 . 1 . . Short Circuit 1 | . . . . 1 . . . . Damage (minor) 2 | . . . . 1 . 1 . . Siege Activations . | . . . . . . . . . Martial Activations . | . . . . . . . . . Shielding Activations . | . . . . . . . . . Robots Disrupted . | . . . . . . . . . Combat Hostiles . | . . . . . . . . . Robots Corrupted 3 | . . . . . . . . 3 Combat Hostiles 3 | . . . . . . . . 3 Parts Fried 1 | . . . . . . . . 1 Impact Corruptions 13 | . . . . . . 1 . 12 Robots Melted . | . . . . . . . . . Combat Hostiles . | . . . . . . . . . Parts Melted 4 | . . . 1 1 . . . 2 Heat Transferred 1669 | . . . 494 570 . 50 . 555 Parts Sabotaged 6 | . . . . . . . . 6 Parts Stolen . | . . . . . . . . . Parts Stripped . | . . . . . . . . . Power Chain Reactions 4 | . . . 1 2 . 1 . . Alert | -11 -10 -10 -8 -8 -8 -7 -6 -6 ------- Run | Yrd Mat Sub Mat Gar Mat Fac Fac Gar Maximum Alert Level 5 | . . . 3 5 4 2 1 2 Low Security (%) 22 | 100 100 . 37 . . . 50 53 Level 1 20 | . . . 45 . . . 49 45 Level 2 23 | . . . 15 10 . 100 . 1 Level 3 9 | . . . . 31 2 . . . Level 4 12 | . . . . 20 97 . . . Level 5 10 | . . . . 37 . . . . High Security . | . . . . . . . . . Max Security . | . . . . . . . . . Peak Influence 2390 | 10 . . 713 2390 1532 687 277 401 Initial 1164 | . . . . 462 1164 687 277 61 Average 677 | 1 . . 251 1380 1211 582 189 193 Influence Increases 5593 | 10 . . 1393 1978 829 641 85 657 Destroy 0b10 Robot/C 2980 | . . . 920 720 460 480 60 340 Destroy 0b10 Robot/NC 135 | 10 . . 80 . 20 25 . . Destroy Leader 532 | . . . 256 30 116 90 20 20 Allied During Kill 81 | . . . . 8 55 8 . 10 Successful Hack 117 | . . . 8 26 37 27 5 14 Disable Machine 120 | . . . 30 30 60 . . . Anti-Garrison Action 1300 | . . . . 1050 . . . 250 Destroy Structure 223 | . . . 39 99 51 11 . 23 Lose Combat Pursuer 105 | . . . 60 15 30 . . . Influence Decreases 5222 | 10 . . 682 299 1708 1586 563 374 Entered New Map 2615 | . . . . 249 1226 824 289 27 Time Decay 1670 | 10 . . 582 . 302 562 214 . Lost Part 697 | . . . 100 10 80 180 60 267 Lost Ally 240 | . . . . 40 100 20 . 80 Squads Dispatched 26 | . . . 10 . 6 8 2 . Investigation 5 | . . . 3 . . 1 1 . Extermination 4 | . . . . . . 3 1 . Reinforcement 7 | . . . 5 . 1 1 . . Assault 5 | . . . . . 2 3 . . Garrison 5 | . . . 2 . 3 . . . Intercept . | . . . . . . . . . Searches Triggered . | . . . . . . . . . Construction Impeded 1 | . . . . . . 1 . . Haulers Reinforced . | . . . . . . . . . Active Scanning Responses . | . . . . . . . . . Cargo Convoy Interrupts . | . . . . . . . . . Stealth | -11 -10 -10 -8 -8 -8 -7 -6 -6 --------- Run | Yrd Mat Sub Mat Gar Mat Fac Fac Gar Distress Signals 8 | . . . 3 1 4 . . . Communications Jammed . | . . . . . . . . . Distress Signals . | . . . . . . . . . Times Spotted 215 | . 1 . 80 38 33 34 5 24 Peak Tracking Total 13 | . 1 . 5 4 13 6 3 5 Tactical Retreats 7 | . . . 4 1 2 . . . Traps | -11 -10 -10 -8 -8 -8 -7 -6 -6 ------- Run | Yrd Mat Sub Mat Gar Mat Fac Fac Gar Traps Triggered 24 | . . . 3 13 . 4 . 4 Indirectly . | . . . . . . . . . Trap Hack Attempts . | . . . . . . . . . Triggered . | . . . . . . . . . Disarmed . | . . . . . . . . . Reprogrammed . | . . . . . . . . . Reused . | . . . . . . . . . Traps Extracted . | . . . . . . . . . Installed . | . . . . . . . . . Triggered . | . . . . . . . . . Machines | -11 -10 -10 -8 -8 -8 -7 -6 -6 ---------- Run | Yrd Mat Sub Mat Gar Mat Fac Fac Gar Machines Disabled 16 | . . . 2 7 4 . . 3 Max in Single Turn 2 | . . . 2 1 1 . . 1 Garrison Relay 7 | . . . . 4 . . . 3 Machines Repaired . | . . . . . . . . . Machines Dismantled . | . . . . . . . . . Machines Sabotaged . | . . . . . . . . . Overloaded Fab Kills . | . . . . . . . . . Hacking | -11 -10 -10 -8 -8 -8 -7 -6 -6 --------- Run | Yrd Mat Sub Mat Gar Mat Fac Fac Gar Machines Accessed 20 | . . . 7 3 3 3 3 1 Terminals 17 | . . . 6 3 3 2 2 1 Fabricators 1 | . . . . . . 1 . . Repair Stations . | . . . . . . . . . Recycling Units . | . . . . . . . . . Scanalyzers . | . . . . . . . . . Garrison Access 2 | . . . 1 . . . 1 . Total Hacks 31 | . . . 12 4 6 3 5 1 Successful 15 | . . . 5 2 3 2 2 1 Failed 16 | . . . 7 2 3 1 3 . Catastrophic 6 | . . . 2 1 1 1 1 . Database Lockouts . | . . . . . . . . . Manual 17 | . . . 7 . 5 1 4 . Terminals 28 | . . . 11 4 6 2 4 1 Fabricators 1 | . . . . . . 1 . . Repair Stations . | . . . . . . . . . Recycling Units . | . . . . . . . . . Scanalyzers . | . . . . . . . . . Garrison Access 2 | . . . 1 . . . 1 . Terminal Hacks 9 | . . . 3 2 2 1 . 1 Level Access Points 1 | . . . . . 1 . . . Branch Access Points 1 | . . . . . . 1 . . Emergency Access Points 3 | . . . 1 1 . . . 1 Garrison Index 1 | . . . 1 . . . . . Zone Layout 2 | . . . 1 . 1 . . . Patrol Navigation 1 | . . . . 1 . . . . Fabricator Hacks 1 | . . . . . . 1 . . Network Status 1 | . . . . . . 1 . . Repair Station Hacks . | . . . . . . . . . Recycling Unit Hacks . | . . . . . . . . . Scanalyzer . | . . . . . . . . . Garrison Access Hacks 2 | . . . 1 . . . 1 . Unlock Access 2 | . . . 1 . . . 1 . Unauthorized Hacks 3 | . . . 1 . 1 . 1 . Terminals 3 | . . . 1 . 1 . 1 . Botnet 3 | . . . 1 . 1 . 1 . Fabricators . | . . . . . . . . . Repair Stations . | . . . . . . . . . Recycling Units . | . . . . . . . . . Scanalyzers . | . . . . . . . . . Garrison Access . | . . . . . . . . . Data Cores Recovered 1 | . . . 1 . . . . . Used . | . . . . . . . . . Hacking Detections 14 | . . . 5 2 2 3 2 . Full Trace Events 2 | . . . . 1 . . 1 . Feedback Events . | . . . . . . . . . Feedback Blocked . | . . . . . . . . . Robot Schematics Acquired . | . . . . . . . . . Robots Built . | . . . . . . . . . Authchips . | . . . . . . . . . Time . | . . . . . . . . . Total Robot Build Rating . | . . . . . . . . . Part Schematics Acquired . | . . . . . . . . . Parts Built . | . . . . . . . . . Authchips . | . . . . . . . . . Time . | . . . . . . . . . Total Part Build Rating . | . . . . . . . . . Parts Repaired . | . . . . . . . . . Time . | . . . . . . . . . Parts Recycled . | . . . . . . . . . Recycled Matter . | . . . . . . . . . Retrieved Matter . | . . . . . . . . . Retrieved Components . | . . . . . . . . . Parts Scanalyzed . | . . . . . . . . . Part Schematics Acquired . | . . . . . . . . . Parts Damaged . | . . . . . . . . . Bothacking | -11 -10 -10 -8 -8 -8 -7 -6 -6 ------------ Run | Yrd Mat Sub Mat Gar Mat Fac Fac Gar Used RIF Installer 3 | . . . . 2 . . . 1 Coupler Efficiency 1 | . . . . 1 . . . . Program Shield 1 | . . . . . . . . 1 Robots Hacked 8 | . . . . . . 3 . 5 Non-combat . | . . . . . . . . . Combat 8 | . . . . . . 3 . 5 Robot Hacks Applied 10 | . . . . . . 3 . 7 find_shortcuts 2 | . . . . . . . . 2 overload_power 3 | . . . . . . . . 3 amplify_resonance 1 | . . . . . . . . 1 formatsys_high 4 | . . . . . . 3 . 1 Relay Couplers Released 35 | . . . . 19 . 4 . 12 Machine Destruction 31 | . . . . 19 . . . 12 Programmers 4 | . . . . . . 4 . . Attached 6 | . . . . . . 3 . 3 Fabnet Peak Effective % . | . . . . . . . . . Robots Rewired 11 | . . . . 8 . . . 3 Allies Hacked . | . . . . . . . . . Hacks Repelled . | . . . . . . . . . Allies | -11 -10 -10 -8 -8 -8 -7 -6 -6 -------- Run | Yrd Mat Sub Mat Gar Mat Fac Fac Gar Total Allies 15 | . . . . 8 . 3 . 4 Largest Group 6 | . . . . 6 6 1 . 2 Highest-Rated Group 170 | . . . . 170 170 30 . 75 Highest-Rated Ally 46 | . . . . 40 40 30 . 46 Total Orders . | . . . . . . . . . Ally Attacks 76 | . . . . 10 41 14 . 11 Total Damage 1859 | . . . . 142 1012 372 . 333 Kills 16 | . . . . 1 9 3 . 3 Allies Corrupted . | . . . . . . . . . Allies Melted . | . . . . . . . . . Intel | -11 -10 -10 -8 -8 -8 -7 -6 -6 ------- Run | Yrd Mat Sub Mat Gar Mat Fac Fac Gar Active Infowar (turns) 1312 | 9 124 55 703 . . 421 . . Sensors 421 | . . . . . . 421 . . Seismic 891 | 9 124 55 703 . . . . . Robot Analysis Total . | . . . . . . . . . Derelict Logs Recovered 1 | . . 1 . . . . . . Drone Launches . | . . . . . . . . . Drone Recoveries . | . . . . . . . . . Exploration | -11 -10 -10 -8 -8 -8 -7 -6 -6 ------------- Run | Yrd Mat Sub Mat Gar Mat Fac Fac Gar Turns Passed 10102 | 119 124 55 2611 2890 671 1666 440 1526 Spaces Moved 4536 | 61 68 29 1117 1389 325 756 240 551 Core 22 | 12 . . . . . 8 . 2 Treads 560 | 49 68 29 260 . . . . 154 Legs 80 | . . . . . . . 20 60 Wheels 3874 | . . . 857 1389 325 748 220 335 Hover . | . . . . . . . . . Flight . | . . . . . . . . . Fastest Speed 50 | 50 160 160 100 140 155 131 116 175 Average Speed 165 | 138 160 160 161 154 159 171 143 212 Slowest Speed 2000 | 160 160 160 190 190 190 2000 190 1450 Overloaded Moves . | . . . . . . . . . Propulsion Burnouts . | . . . . . . . . . Robots Hopped . | . . . . . . . . . Potential Cave-ins . | . . . . . . . . . Cave-ins Triggered . | . . . . . . . . . Exploration Rate (%) 39 | 4 18 4 84 95 59 21 7 62 Regions Visited 8 Branch Regions 1 Pre-discovered Areas 2 | . . 2 . . . . . . Known Exits Taken 3 | . . . 1 . 1 . 1 . Unknown Exits Taken 4 | 1 1 1 . . . 1 . . Scrap Searched . | . . . . . . . . . Spaces Dug 26 | . . . . 18 . . . 8 Terrain Destroyed 123 | . . . 40 18 54 3 . 8 Melee 8 | . . . . . . . . 8 Projectile 1 | . . . . . 1 . . . AOE 114 | . . . 40 18 53 3 . . Terrain Rammed . | . . . . . . . . . Walls Destroyed . | . . . . . . . . . Machines Disabled . | . . . . . . . . . Actions | -11 -10 -10 -8 -8 -8 -7 -6 -6 --------- Run | Yrd Mat Sub Mat Gar Mat Fac Fac Gar Total 6256 | 87 83 38 1599 1969 417 989 300 774 Wait 389 | 5 11 10 158 109 32 37 11 16 Move 4528 | 60 67 28 1116 1388 324 755 239 551 Hop . | . . . . . . . . . Pick Up 184 | 10 5 . 52 39 10 27 11 30 Fast Attach 28 | . . . 14 6 3 2 3 . Attach 103 | 7 . . 12 12 7 24 9 32 Detach 11 | . . . 1 4 . 3 . 3 Swap 55 | . . . 19 21 3 8 . 4 Drop 118 | . . . 47 42 7 19 2 1 Fire 502 | 5 . . 180 125 31 95 25 41 Melee 39 | . . . . . . . . 39 Ram 3 | . . . . . . 3 . . Kick 1 | . . . . . . . . 1 Crush 3 | . . . . . . . . 3 Escape Stasis 113 | . . . . 71 . 16 . 26 Rewire 179 | . . . . 152 . . . 27 Trap . | . . . . . . . . . Miscellaneous . | . . . . . . . . . Route ------- -11/Scrapyard -10/Materials (discovered 2 exits: [*Mat] / [*Sub]) -10/Subcaves -8/Materials (discovered 3 exits: *Fac x2 / Gar) -8/Garrison (discovered 3 exits: *Mat x3) -8/Materials (discovered 3 exits: *Fac x3) -7/Factory (discovered 4 exits: *Fac / Sto / Low x2) -6/Factory -6/Garrison (discovered 2 exits: [*Fac x2]) History --------- Turn | Location | Event 3 | -11/Scrapyard | Discovered new exit (range 16) 120 | -11/Scrapyard | Entered Materials 121 | -10/Materials | Met a group of wandering Federalists 216 | -10/Materials | Discovered new exit (range 6) 237 | -10/Materials | Discovered new exit (range 6) 244 | -10/Materials | Entered Subcaves 245 | -10/Subcaves | Continued accompanying wandering Federalists (5) 274 | -10/Subcaves | Learned location of Zion (-7) 285 | -10/Subcaves | Discovered new exit (range 9) 286 | -10/Subcaves | Met a Zionite searching for "candidates" 299 | -10/Subcaves | Entered Materials 299 | -8/Materials | Evolved 4 slots: Propulsion x1, Utility x2, Weapon x1 303 | -8/Materials | Build established: Mutant 936 | -8/Materials | Discovered new exit (range 16) 1285 | -8/Materials | Lost 4 parts (1p1u2w) 1480 | -8/Materials | Build established: Hauler-Mutant 1923 | -8/Materials | Build established: Hauler-Tank 2308 | -8/Materials | Discovered new exit (range 11) 2695 | -8/Materials | Garrison activated, responded to threat 2840 | -8/Materials | Garrison activated, responded to threat 2885 | -8/Materials | Identified exit to Garrison 2910 | -8/Materials | Entered Garrison 3029 | -8/Garrison | Core integrity fell below 50% 3071 | -8/Garrison | Destroyed 8 combat bots 3086 | -8/Garrison | Triggered checkpoint 3248 | -8/Garrison | Triggered checkpoint 3294 | -8/Garrison | Garrison Relay disabled 3355 | -8/Garrison | Installed Relay Interface Framework 3461 | -8/Garrison | Discovered new exit (range 8) 3880 | -8/Garrison | Triggered checkpoint 3886 | -8/Garrison | Triggered checkpoint 3960 | -8/Garrison | Triggered checkpoint 3984 | -8/Garrison | Garrison Relay disabled 4122 | -8/Garrison | Triggered checkpoint 4160 | -8/Garrison | Garrison Relay disabled 4240 | -8/Garrison | Triggered checkpoint 4247 | -8/Garrison | Discovered new exit (range 15) 4676 | -8/Garrison | Triggered checkpoint 4742 | -8/Garrison | Garrison Relay disabled 4783 | -8/Garrison | Discovered new exit (range 12) 4821 | -8/Garrison | Expanded RIF knowledge: Coupler Efficiency 5800 | -8/Garrison | Entered Materials 5800 | -8/Materials | Accompanied by 6 allies 5991 | -8/Materials | Discovered new exit (range 16) 6200 | -8/Materials | First assault squad dispatched 6229 | -8/Materials | Garrison activated, responded to threat 6299 | -8/Materials | Identified exit to Factory 6300 | -8/Materials | Lost 5 allies 6355 | -8/Materials | Core integrity fell below 20% 6401 | -8/Materials | Destroyed 10 combat bots 6455 | -8/Materials | Lost 4 parts (1p1n1u1w) 6471 | -8/Materials | Entered Factory 6471 | -7/Factory | Evolved 2 slots: Propulsion x1, Utility x1 6617 | -7/Factory | Identified exit to Storage 6617 | -7/Factory | Identified exit to Lower Caves 7271 | -7/Factory | First assault squad dispatched 7297 | -7/Factory | Discovered new exit (range 15) 7665 | -7/Factory | System corruption reached 10% 7751 | -7/Factory | Core integrity fell below 50% 7780 | -7/Factory | Lost 9 parts (1p2n2u4w) 7811 | -7/Factory | System corruption reached 30% 7852 | -7/Factory | Lost 4 parts (3n1w) 7976 | -7/Factory | Lost 3 parts (2p1w) 8037 | -7/Factory | Build established: Bothacker-Mutant 8137 | -7/Factory | Entered another Factory area 8137 | -6/Factory | Evolved 2 slots: Utility x1, Weapon x1 8153 | -6/Factory | Identified exit to Garrison 8530 | -6/Factory | Lost 6 parts (2n1u3w) 8577 | -6/Factory | Entered Garrison 8777 | -6/Garrison | Lost 9 parts (3n1u5w) 8787 | -6/Garrison | Lost 3 allies 8891 | -6/Garrison | Triggered checkpoint 8913 | -6/Garrison | Garrison Relay disabled 9187 | -6/Garrison | Lost 4 parts (2n1u1w) 9225 | -6/Garrison | Triggered checkpoint 9245 | -6/Garrison | Core integrity fell below 50% 9328 | -6/Garrison | Discovered new exit (range 8) 9371 | -6/Garrison | Triggered checkpoint 9393 | -6/Garrison | Garrison Relay disabled 9579 | -6/Garrison | Discovered new exit (range 13) 9689 | -6/Garrison | Triggered checkpoint 9764 | -6/Garrison | Garrison Relay disabled 9824 | -6/Garrison | Expanded RIF knowledge: Program Shield 9897 | -6/Garrison | Triggered checkpoint 9950 | -6/Garrison | Lost 5 parts (1p1n1u2w) 10080 | -6/Garrison | Core integrity fell below 20% 10103 | -6/Garrison | Destroyed by X-67 Chaingunner with Heavy Machine Gun Last Messages --------------- 09975_ Field strength at 10. 09976_ Stasis field depleted. 10005_ Connecting with Garrison Terminal... >>Access(Emergency) Found 47 emergency access points. Map updated. 10070_ X-67 Chaingunner springs to life. 10077_ Propulsion Shielding destroyed. 10077_ Lgt. Treads destroyed. 10079_ X-67 Chaingunner suffers critical hit (Burn). 10079_ X-67 Chaingunner destroyed. 10079_ Flak Gun destroyed. 10080_ Power Maul destroyed. 10081_ Lgt. Treads destroyed. 10084_ Weapon Cycler melted. 10084_ Lrg. Matter Pod melted. 10084_ X-67 Chaingunner destroyed. 10089_ Lgt. Nuclear Core destroyed. 10096_ Hvy. Laser destroyed. Map ----- +----------------------------------------------------+ | ????????????????????????????????# | | ????????????????????????????????# | | ????????????????????????????????# | | ????????????????????????????????#+# ## ## # | | ??????????????????????????????????# ## ## # | | ??????????????????????????????????# # | | ??????????????????????????????????# + | | ??????????????????????????????????# ^^ ! # | | ??????????????????????????????????## ^##% ## ## | | ???????????????????????????????????# ## ## #? | | ???????????????????????????????????# ######## #? | | ???????????????????????????????????+ #??????# #? | | ???????????????????????????????????# #??????# #? | | ???????????????????????????????????# #??????# #? | | ???????????????????????????????????# #??????# #? | | ????????????????????#############+## #??????# ## | | ????????????????????# #???#### | | ????????????????????# #???# + | | ??????+?????????????# ##+#######T#####???# ##++## | | ????????????????????# ## #?????###???????# # #? | | ????????????????????# ## #???????????????# !# #? | | ?????????+??????????# ## #???????????????# !# #? | | ????????????????+???+ " #???????????????# !# #? | | ????????????????????# ## #???????????????# !# #? | | ?????????????????+??# ##[####????????????# !# #? | | ??????????????????? ##@![[+????????????#### #? | | ?????????????????? ###%*x#???????????????# #? | | ?????????????????+######??####???????????????# #? | | ?????????????????????????????????????????????# #? | | ?????????????????????????????????????????????# #? | | ?????????????????????????????????????????????? ?? | | ??????+????+??+??????????????????????????????? ?? | | ?????????????????????????????????????????????? ?? | | ???????+?????????????????????????????????????????? | | ?????????????????????????????????????????????????? | | ?????????????????????????????????????????????????? | | ???????+?????????????????????????????????????????? | | ?????????????????????????????????????????????????? | | ?????????????????????????????????????????????????? | | ?????+???????????????????????????????????????????? | | ?????????????????????????????????????????????????? | | ?????????????????????????????????????????????????? | | ?????????????????????????????????????????????????? | | ?????????????????????????????????????????????????? | | ?????????????????????????????????????????????????? | | ?????????????????????????????????????????????????? | | ?????????????????????????????????????????????????? | | ?????????????????????????????????????????????????? | | ?????????????????????????????????????????????????? | | ?????????????????????????????????????????????????? | +----------------------------------------------------+ Best States ------------- Heat Dissipation 37 Coolant Potential 65 Energy Generation 18 Energy Capacity 290 Matter Stores 300 Matter Capacity 300 Sight Range 16 Robot Scan Range 15 Terrain Scan Density 10 Armor Coverage 1200 Core Shielding 30 Propulsion Shielding 33 Evasion (%) 50 Targeting Accuracy 8 Recoil Reduction 3 Offensive Hacking 20 Relay Coupler Types 3 Relay Coupler Value 66 Item Schematics ----------------- None Robot Schematics ------------------ None Fabricated ------------ Nothing Repaired ---------- Nothing Alien Tech Used ----------------- None Achievements -------------- None Challenges ------------ None Game ------ Seed WeightLightpackScreen Manual? 0 Play Time 01:20:32 Cumulative 234.4 hours Start 2025.08.30 @ 13:30:55 End 2025.08.30 @ 14:50:49 Sessions 1 Manual Loads 0 Difficulty Rogue Special Mode None Game No. 345 Rogue 345 Adventurer 0 Explorer 0 Win Type - Total 4 Types 3/0/1/0/0/0/0/0/0/0 Lore% 81 Gallery% 76 Achievement% 58 Wizard Run 0 Options --------- Layout 1 ASCII 0 Keyboard 0 Movement Mouse Keybinds 0 Fullscreen 1 Font 24/Smallcaps Map View 50x40 Zoom Use 0% Tactical HUD 1 Map Filters NONE Filters NONE Steam 1 RUN: 8f31a5d1-23c1-4705-9127-af31d171692f